[Event "3rd Sunway Formentera-A 2024"]
[Site "Formentera"]
[Date "2024.04.09"]
[Round "1.1"]
[White "Donchenko, Alexander"]
[Black "Mohamed Anees M"]
[Result "1-0"]
[ECO "D45"]
[WhiteElo "2633"]
[BlackElo "2253"]
[Annotator "TA"]
[PlyCount "119"]
[EventDate "2024.04.03"]
[EventType "swiss"]
[EventCountry "ESP"]
[SourceTitle "playchess.com"]
[Source "ChessBase"]
[SourceQuality "1"]
[TimeControl "40/5400+30:1800+30"]

{[%evp 21,119,54,70,62,61,60,48,43,49,41,83,39,43,56,86,23,26,37,33,41,45,27,67,73,90,103,104,100,93,96,119,52,87,98,263,64,61,-10,-10,-2,245,234,229,231,213,224,230,177,151,141,364,231,248,0,0,0,75,0,0,0,0,0,57,59,50,59,64,69,70,64,65,63,94,39,379,391,448,415,383,322,682,612,751,716,29986,29987,29988,29989,29989,29990,29991,29988,29988,29989,29989,29990,29990,29991,29991,29992]} 1. c4 {[%emt 0:00:00]} c6 {[%emt 0:00:00]} 2. Nf3 {[%emt 0:00:05]} d5 {[%emt 0:00:11]} 3. e3 {[%emt 0:00:30]} Nf6 {[%emt 0:00:30]} 4. Nc3 {[%emt 0:00:30]} e6 {[%emt 0:00:30]} 5. b3 {[%emt 0:00:30]} Nbd7 {[%emt 0:00:30]} 6. Bb2 {[%emt 0:00:30]} Bd6 {[%emt 0:00:30]} 7. Qc2 {[%emt 0:00:30]} a6 {[%emt 0:00:30]} 8. d4 {[%emt 0:00:30]} O-O {[%emt 0:00:30]} 9. Bd3 {[%emt 0:00:30]} dxc4 {[%emt 0:00:30]} 10. bxc4 {[%emt 0:00:30]} e5 {[%emt 0:00:30]} 11. O-O {[%emt 0:03:32]} exd4 {[%emt 0:13:38]} 12. exd4 {[%emt 0:00:30]} Re8 {[%emt 0:00:30]} 13. Rfe1 {[%emt 0:07:20]} Rxe1+ {[%emt 0:07:00]} 14. Rxe1 {[%emt 0:01:08]} Nf8 {[%emt 0:00:07]} 15. h3 {[%emt 0:08:27]} Ng6 {[%emt 0:04:25]} 16. Bc1 {[%emt 0:11:54]} Nf4 {[%emt 0:17:46]} 17. Bf1 {[%emt 0:01:42]} Ne6 {[%emt 0:00:27]} 18. d5 {[%emt 0:06:24]} ({Better is} 18. Ne4 $16) 18... cxd5 $11 {[%emt 0:01:59]} 19. Nxd5 {[%emt 0:00:30]} Nxd5 {[%emt 0:00:30]} 20. cxd5 {[%emt 0:03:56]} Nf8 {[%emt 0:13:30]} 21. Bb2 {[%emt 0:05:11]} Ng6 {[%emt 0:02:25]} 22. Qc3 {[%emt 0:06:54]} Bf8 {[%emt 0:01:25]} 23. Bc4 {[%emt 0:04:35]} b5 {[%emt 0:03:09]} 24. Bb3 {[%emt 0:00:30]} Bb7 {[%emt 0:00:30]} 25. h4 {[%emt 0:00:30]} (25. d6 {feels hotter.} Rc8 26. Qd3 Qxd6 27. Qf5) 25... h6 {[%emt 0:00:30]} 26. Qd4 {[%emt 0:12:40]} (26. h5 $1 $16 {[%cal Rh5g6]} Nf4 27. Qe3 Nxd5 28. Qe4) 26... Qd6 {[%emt 0:07:42]} 27. h5 {[%emt 0:00:30]} Ne7 $2 {[%emt 0:00:30]} (27... Nf4 $16) 28. Re5 $2 {[%emt 0:09:56]} (28. Ne5 $18 {[%cal Oe5f7] Black must now prevent Nxf7!} Nxd5 29. Rd1) 28... Rd8 $14 {[%emt 0:04:46]} 29. Bc2 {[%emt 0:00:30]} (29. Nh4 $1 $14) 29... Bxd5 $11 {[%emt 0:00:30]} (29... Nxd5 $2 30. Qe4 g6 31. Bb3 $16) 30. Qd3 {[%emt 0:00:30]} f5 $2 {[%emt 0:00:30]} (30... g6 $1 $11 {and Black is okay.}) 31. Rxd5 $1 $18 {[%emt 0:00:30]} Nxd5 {[%emt 0:00:30]} (31... Qxd5 $2 32. Bb3 $18) 32. Qxf5 {[%emt 0:00:30]} Ne7 {[%emt 0:00:30]} (32... Nf6 $2 33. Ne5 $18) 33. Bb3+ {[%emt 0:00:30]} (33. Qh7+ Kf7) 33... Kh8 {[%emt 0:00:30]} 34. Qf7 {[%emt 0:00:30]} Qd3 {[%emt 0:00:30]} 35. Kh2 $1 {[%emt 0:00:30]} Qe2 $2 {[%emt 0:00:30]} (35... Qf5 $16) 36. Bd4 {[%emt 0:00:30]} Qe4 {[%emt 0:00:30]} 37. Bb6 $2 {[%emt 0:00:30]} (37. Ne5 $1 $18 {[%cal Re5g6] White threatens Ng6+ and mate.} Kh7 (37... Qxd4 38. Ng6+ Kh7 39. Nxf8+ Kh8 40. Ne6 $16) (37... Qh4+ $2 38. Kg1 $18) 38. Ng6 Qxd4 (38... Rxd4 39. Nxf8+ Kh8 40. Ng6+ Kh7 41. Qf8) 39. Nxf8+ (39. Nxe7 $2 Qd6+ 40. Kg1 Bxe7 $19) 39... Kh8 40. Ne6 Qd6+ 41. g3) 37... Rb8 {[%emt 0:20:00]} 38. Bc7 {[%emt 0:12:59]} Rc8 {[%emt 0:00:00]} (38... Ra8 $1 $11 {remains equal.}) 39. Be5 {[%emt 0:01:30]} (39. g4 $1 $16) 39... Qf5 $11 {[%emt 0:00:00]} 40. Qxf5 $1 {[%emt 0:00:00]} Nxf5 {[%emt 0:00:00]} 41. Be6 {[%emt 0:00:42]} Ne7 {[%emt 0:00:00]} (41... Rc2 $11 42. Bxf5 Rxf2) 42. Bxc8 $14 {[%emt 0:03:11]} Nxc8 {[%emt 0:00:00]} 43. Kg3 {[%emt 0:00:42]} Nb6 {[%emt 0:01:44]} 44. Kf4 {[%emt 0:02:40]} Nd5+ {[%emt 0:00:50]} 45. Kf5 {[%emt 0:02:29]} Kg8 {[%emt 0:01:16]} 46. Nd4 {[%emt 0:05:17]} Kf7 {[%emt 0:01:27] [#]} (46... Nc3 $2 47. Ne6 Nxa2 48. Nxf8 (48. Kg6 Bb4 $16) 48... Kxf8 49. Kg6 $18) 47. g4 {[%emt 0:00:39]} ({White should play} 47. Nc6 $1 $16) 47... Bc5 $2 {[%emt 0:02:29][%mdl 8192] [#]} ({Black should try} 47... b4 $14) 48. Bxg7 $1 $18 {[%emt 0:00:58]} Kxg7 {[%emt 0:03:44]} (48... Ne7+ 49. Ke4 (49. Kf4 Kxg7 50. Ne6+ Kf6 $16) 49... Kxg7 50. Ne6+ Kf6 51. Nxc5 $18) 49. Ne6+ {[%emt 0:00:08]} Kf7 {[%emt 0:00:03]} 50. Nxc5 {[%emt 0:00:06]} Nc3 $2 {[%emt 0:00:22]} (50... a5 51. Nb7 Nc3) 51. f4 $18 {[%emt 0:02:48]} (51. Nxa6 Nxa2 52. Ke5 b4 $11) 51... Nxa2 {[%emt 0:00:19]} 52. g5 $1 {[%emt 0:00:21]} ({Stronger than} 52. Nxa6 b4 53. Nc5 Nc1 $11) 52... hxg5 {[%emt 0:00:15]} 53. fxg5 {[%emt 0:00:19]} Nb4 {[%emt 0:00:14]} 54. h6 {[%emt 0:02:04]} Nd5 {[%emt 0:01:41]} 55. g6+ {[%emt 0:00:23]} ({Worse is} 55. Nxa6 Ne7+ 56. Ke5 Kg6 $11) 55... Kg8 {[%emt 0:00:05]} 56. Nd7 {[%emt 0:01:55]} Ne7+ {[%emt 0:00:30]} 57. Kf6 {[%emt 0:00:20]} Nd5+ {[%emt 0:00:06]} 58. Ke6 {[%emt 0:00:13]} Nf4+ {[%emt 0:00:31]} 59. Kf5 {[%emt 0:00:11]} Nd5 {[%emt 0:00:05]} 60. Nf6+ {[%emt 0:00:10]} 1-0

[Event "3rd Sunway Formentera-A 2024"]
[Site "Formentera"]
[Date "2024.04.09"]
[Round "1.2"]
[White "Cervantes Landeiro, Thalia"]
[Black "Ivanchuk, Vasyl"]
[Result "1/2-1/2"]
[ECO "D07"]
[WhiteElo "2219"]
[BlackElo "2611"]
[Annotator "TA"]
[PlyCount "109"]
[EventDate "2024.04.03"]
[EventType "swiss"]
[EventCountry "ESP"]
[SourceTitle "playchess.com"]
[Source "ChessBase"]
[SourceQuality "1"]
[TimeControl "40/5400+30:1800+30"]

{[%evp 10,109,19,16,26,21,29,0,0,-20,0,-53,-52,-52,-58,-52,-53,-109,-15,-53,-51,-54,-55,-53,-60,-66,-62,-66,-63,-59,-63,-64,-51,-47,-44,-52,-35,-37,-32,-35,-38,-61,0,-19,0,0,25,25,13,-73,0,0,0,-33,-31,-33,0,0,0,-8,0,-8,-10,-21,0,0,0,0,0,0,0,0,0,0,0,0,0,0,0,0,0,0,0,0,0,0,0,0,0,0,0,0,0,0,0,0,0,0,0,0,0,0]} 1. d4 Nc6 2. c4 d5 3. cxd5 Qxd5 4. Nf3 e5 5. Nc3 Bb4 6. dxe5 Qxd1+ 7. Kxd1 Bg4 8. Bg5 h6 9. Bh4 Nge7 10. a3 (10. Kc2 $11) 10... Bxc3 $15 11. bxc3 Nf5 {...Bxf3 would now be deadly.} 12. Bg3 O-O-O+ 13. Kc2 {[#]} (13. Ke1 $15) 13... Rhe8 (13... Nxg3 $1 $17 14. hxg3 Bf5+ 15. Kc1 (15. Kb2 Rhe8 $17) 15... Rhe8) 14. e4 Nxg3 15. hxg3 Nxe5 16. Nxe5 Rxe5 17. f3 Bd7 18. a4 h5 19. Bc4 Be8 20. Bb5 g6 21. Bxe8 Rdxe8 {[%mdl 4096] Endgame. KRR-KRR} 22. Rad1 Rg5 23. Rh3 Rd8 24. Rd4 $1 b6 25. f4 Rg4 ({Black should play} 25... Ra5 $15 26. Kb3 Re8) 26. Kd3 h4 27. gxh4 Rxf4 28. Rxd8+ Kxd8 $11 {KR-KR} 29. Rf3 (29. Ke3 $11 {remains equal.} Rf1 30. g4 Re1+ 31. Kf4 Rf1+ 32. Ke5) 29... Rxh4 (29... Rxf3+ $17 30. gxf3 Ke7) 30. Rxf7 Rg4 31. Rf2 Ke7 32. a5 bxa5 33. Kd4 {The position is equal.} Ke6 34. Rb2 Kd6 35. Rb7 Rxg2 36. Rxa7 Rg5 37. Ra6+ c6 {[%cal Bc7c6,Bc6c5][%mdl 32]} 38. Ra7 Re5 39. Rg7 c5+ 40. Ke3 Rg5 41. Ra7 Ke5 {[#] Hoping for ...Rg3+.} 42. Rxa5 Rg3+ 43. Kd2 Kxe4 44. Rxc5 g5 45. Ke2 g4 46. Rc4+ Kf5 47. Rc5+ Kf4 48. Rc4+ Kg5 49. Kf2 Rd3 50. Rc8 Rf3+ 51. Kg2 Rd3 52. Rg8+ Kf4 53. Rf8+ Ke5 54. Rg8 Rxc3 55. Rxg4 {[%emt 0:58:25] Weighted Error Value: White=0.13 (very precise) /Black=0.10 (very precise) .  Mistake:       	White=3     	Black=3      Inaccurate:     	White=3     	Black=1      OK:         	White=22    	Black=17     Best:        	White=5     	---        Strong:       	White=1     	---} 1/2-1/2

[Event "3rd Sunway Formentera-A 2024"]
[Site "Formentera"]
[Date "2024.04.09"]
[Round "1.3"]
[White "Moussard, Jules"]
[Black "Krzywda, Andrzej"]
[Result "1-0"]
[ECO "D35"]
[WhiteElo "2610"]
[BlackElo "2214"]
[Annotator "TA"]
[PlyCount "83"]
[EventDate "2024.04.03"]
[EventType "swiss"]
[EventCountry "ESP"]
[SourceTitle "playchess.com"]
[Source "ChessBase"]
[SourceQuality "1"]
[TimeControl "40/5400+30:1800+30"]

{[%evp 15,83,9,22,10,4,10,23,19,36,34,29,15,24,12,63,10,15,8,56,26,38,25,23,32,27,35,25,35,43,29,29,21,36,32,50,43,45,40,54,25,53,50,74,36,63,57,54,70,95,96,117,103,234,209,246,163,359,358,443,435,462,443,431,437,891,891,1642,1585,1561,1514]} 1. c4 {[%emt 0:00:00]} e6 {[%emt 0:00:00]} 2. Nc3 {[%emt 0:00:00]} d5 {[%emt 0:00:16]} 3. d4 {[%emt 0:00:15]} Nf6 {[%emt 0:00:30]} 4. cxd5 {[%emt 0:00:30]} exd5 {[%emt 0:00:30]} 5. Bg5 {[%emt 0:00:30][%cal Bc1g5,Bg5h4,Bh4g3,Bg3f4,Bf4h2][%mdl 32]} c6 {[%emt 0:00:30]} 6. e3 {[%emt 0:00:30]} h6 {[%emt 0:00:30]} 7. Bh4 {[%emt 0:00:30]} Be7 {[%emt 0:00:30]} 8. Bd3 {[%emt 0:00:30]} O-O {[%emt 0:00:30]} 9. Bg3 {[%emt 0:00:30]} Re8 {[%emt 0:00:30]} 10. h3 {[%emt 0:00:30]} Nbd7 {[%emt 0:00:30]} 11. Nf3 {[%emt 0:00:30] White has an edge.} Bb4 {[%emt 0:00:30]} 12. O-O {[%emt 0:00:30]} Qe7 {[%emt 0:00:30]} 13. Qc2 {[%emt 0:00:30]} Ne4 {[%emt 0:00:30]} 14. Bf4 {[%emt 0:00:30]} Ng5 {[%emt 0:00:30]} (14... Ndf6 $11) 15. Nd2 {[%emt 0:00:30]} (15. Bxg5 $1 $14 hxg5 16. Rae1) 15... Nf6 $11 {[%emt 0:00:30]} 16. Rfe1 {[%emt 0:00:30]} Nh5 {[%emt 0:00:30]} (16... Bd6 $11) 17. Bh2 {[%emt 0:00:30]} Nf6 {[%emt 0:00:30]} 18. Be5 {[%emt 0:00:30]} Nd7 {[%emt 0:00:30]} 19. Bg3 {[%emt 0:00:30]} Nf6 {[%emt 0:00:30]} 20. a3 {[%emt 0:00:30]} Bd6 {[%emt 0:00:30]} 21. Bxd6 {[%emt 0:00:30]} Qxd6 {[%emt 1:08:06]} 22. f4 {[%emt 0:35:18]} Ne6 {[%emt 0:01:48]} 23. Nf3 {[%emt 0:02:35]} Bd7 {[%emt 0:01:51]} 24. Rad1 {[%emt 0:03:02]} Rad8 {[%emt 0:02:41]} 25. Ne5 {[%emt 0:01:20]} Bc8 {[%emt 0:01:15]} 26. Qf2 {[%emt 0:03:43]} Nc7 {[%emt 0:00:30]} 27. Bb1 {[%emt 0:00:30]} Re7 {[%emt 0:06:42]} 28. g4 {[%emt 0:05:05]} Nd7 {[%emt 0:04:01][%cal Bf6d7,Bd7f8,Bf8h7][%mdl 32]} 29. h4 {[%emt 0:02:50] White is much more active.} Nf8 {[%emt 0:02:25]} 30. Qg3 {[%emt 0:00:40]} f6 {[%emt 0:00:43]} 31. Nf3 {[%emt 0:00:05]} Qd7 {[%emt 0:01:48]} 32. f5 {[%emt 0:08:38]} Nh7 {[%emt 0:02:17]} 33. Kf2 {[%emt 0:04:44]} Ne8 {[%emt 0:00:13] Black cannot hold the game after this.} (33... Rde8 $16 {was worth a try.} 34. Ng1 Nf8) 34. e4 $18 {[%emt 0:02:10] Threatens to win with e5.} dxe4 {[%emt 0:01:46]} 35. Nxe4 {[%emt 0:01:18]} b6 $2 {[%emt 0:00:29] [#]} (35... Nc7 {might work better.} 36. Ba2+ Nd5) 36. Ba2+ $1 {[%emt 0:00:54]} Kh8 {[%emt 0:00:15]} 37. d5 {[%emt 0:00:10] White is clearly winning.} Rxe4 {[%emt 0:01:32]} 38. Rxe4 {[%emt 0:00:18]} Nd6 {[%emt 0:00:22]} 39. Re6 {[%emt 0:00:29][%cal Be4e6,Be6e7,Be7e8][%mdl 32]} c5 {[%emt 0:01:25]} (39... Qc7 $142) 40. Rde1 {[%emt 0:00:00][%cal Oe6d6] [#] Strongly threatening Rxd6!} Nb5 {[%emt 0:00:00]} 41. Re7 {[%emt 0:00:36]} Qd6 {[%emt 0:01:10]} 42. Re8+ {[%emt 0:00:13] Weighted Error Value: White=0.10 (very precise) /Black=0.29 (precise) .  Mistake:       	White=1     	Black=5      Inaccurate:     	White=4     	Black=3      OK:         	White=15    	Black=10     Best:        	White=4     	Black=1      Strong:       	White=1     	---} 1-0

[Event "3rd Sunway Formentera-A 2024"]
[Site "Formentera"]
[Date "2024.04.09"]
[Round "1.4"]
[White "Kazarian, Anna-Maja"]
[Black "Pranav Vijay"]
[Result "0-1"]
[ECO "D00"]
[WhiteElo "2207"]
[BlackElo "2252"]
[Annotator "RC"]
[PlyCount "58"]
[EventDate "2024.04.03"]
[EventType "swiss"]
[EventCountry "ESP"]
[SourceTitle "playchess.com"]
[Source "ChessBase"]
[SourceQuality "1"]
[TimeControl "40/5400+30:1800+30"]

1. d4 {[%emt 0:00:00]} Nf6 {[%emt 0:00:45]} 2. Nc3 {[%emt 0:00:18]} d5 {[%emt 0:00:30]} 3. Bf4 {[%emt 0:00:30]} a6 {[%emt 0:00:30]} 4. e3 {[%emt 0:00:30]} e6 {[%emt 0:00:30]} 5. h4 {[%emt 0:00:30]} b5 {[%emt 0:00:30]} 6. g4 {[%emt 0:00:30]} b4 {[%emt 0:00:30]} 7. Na4 {[%emt 0:00:30]} Bd7 {[%emt 0:00:30]} 8. Nc5 {[%emt 0:00:30]} Bxc5 {[%emt 0:00:30]} 9. dxc5 {[%emt 0:00:30]} Nc6 {[%emt 0:00:30]} 10. Bg2 {[%emt 0:00:30]} Ne4 {[%emt 0:00:30]} 11. Bxe4 {[%emt 0:00:30]} dxe4 {[%emt 0:00:30]} 12. Bg3 {[%emt 0:00:30]} Qf6 {[%emt 0:00:30]} 13. Rb1 {[%emt 0:00:30]} e5 {[%emt 0:00:30]} 14. f3 {[%emt 0:00:30]} exf3 {[%emt 0:00:30]} 15. Qxf3 {[%emt 0:00:30]} Qg6 {[%emt 0:00:30]} 16. Bxe5 {[%emt 0:00:30]} Bxg4 {[%emt 0:00:30]} 17. Qg2 {[%emt 0:00:30]} O-O-O {[%emt 0:00:30]} 18. h5 {[%emt 0:00:30]} Qe6 {[%emt 0:00:30]} 19. Bf4 {[%emt 0:00:30]} Rd5 {[%emt 0:00:30]} 20. Ne2 {[%emt 0:00:30]} Rhd8 {[%emt 0:00:30]} 21. Rg1 {[%emt 0:00:30]} f5 {[%emt 0:00:30]} 22. e4 {[%emt 0:00:30]} Rxc5 {[%emt 0:00:30]} 23. exf5 {[%emt 0:00:30]} Bxf5 {[%emt 0:00:30]} 24. Qxg7 {[%emt 0:00:30]} Nd4 {[%emt 0:00:30]} 25. Rg2 {[%emt 0:00:30]} Rxc2 {[%emt 0:00:30]} 26. Rc1 {[%emt 0:00:30]} Nf3+ {[%emt 0:00:30]} 27. Kf1 {[%emt 0:00:30]} Rxc1+ {[%emt 0:00:30]} 28. Bxc1 {[%emt 0:00:30]} Bh3 {[%emt 0:00:30]} 29. Bf4 {[%emt 0:00:30]} Qb6 {[%emt 0:00:30]} 0-1

[Event "3rd Sunway Formentera-A 2024"]
[Site "Formentera"]
[Date "2024.04.09"]
[Round "1.4"]
[White "Kazarian, Anna-Maja"]
[Black "Pranav, V."]
[Result "0-1"]
[ECO "D00"]
[WhiteElo "2207"]
[BlackElo "2604"]
[Annotator "TA"]
[PlyCount "58"]
[EventDate "2024.04.03"]
[EventType "swiss"]
[EventCountry "ESP"]
[SourceTitle "playchess.com"]
[Source "ChessBase"]
[SourceQuality "1"]
[TimeControl "40/5400+30:1800+30"]

{[%evp 9,58,-29,0,0,-5,0,-14,-36,-50,-47,-41,-45,-35,-46,-35,-41,0,-134,-139,-204,-199,-203,-188,-355,-355,-323,-214,-356,-294,-270,-262,-445,-443,-645,-607,-712,-508,-530,-523,-1593,-1525,-1850,-1681,-2329,-2184,-1887,-1873,-1657,-581,-1337,-1333]} 1. d4 Nf6 2. Nc3 d5 3. Bf4 a6 4. e3 e6 5. h4 b5 {[%cal Bb7b5,Bb5b4][%mdl 32]} 6. g4 b4 7. Na4 Bd7 8. Nc5 {The position is equal.} (8. c4 $5) 8... Bxc5 9. dxc5 Nc6 10. Bg2 Ne4 11. Bxe4 dxe4 12. Bg3 $1 Qf6 13. Rb1 (13. Bxc7 $11 Qxb2 14. Ne2) 13... e5 $17 {Black converts the advantage convincingly.} 14. f3 (14. Qd5 $17 {was called for.}) 14... exf3 15. Qxf3 Qg6 16. Bxe5 $2 (16. h5 {is a better defense.} Qxc2 (16... Qxg4 $2 17. h6 $19) 17. Rd1) 16... Bxg4 $19 17. Qg2 O-O-O {[%cal Oh8e8]} 18. h5 {White is weak on the light squares} (18. Bf4 $142) 18... Qe6 19. Bf4 Rd5 {[%cal Oh8d8]} (19... Qxa2 $2 20. Qxc6 (20. Qxg4+ Kb7 $16) 20... Qa5 (20... Qxb1+ $2 21. Kf2 $18) 21. Ne2 $18) 20. Ne2 $2 (20. Nf3) 20... Rhd8 {[%cal Od5d2] Black is clearly winning.} (20... Bxh5 21. Qxg7 Rhd8 22. Qh6 $19) (20... Rxc5 21. O-O $19) 21. Rg1 (21. O-O $142) 21... f5 {[%cal Od5d2] [#] aiming for ...Rd2!} 22. e4 Rxc5 23. exf5 Bxf5 24. Qxg7 {[%csl Gf4][%cal Rg7c7]} Nd4 (24... Qxa2 25. Qxc7#) 25. Rg2 Rxc2 {[%cal Oe6e4] [#] ( -> ...Qe4!)} 26. Rc1 Nf3+ ({Worse is} 26... Nxe2 27. Qxc7+ Rxc7 28. Rxc7+ Kb8 29. Rxe2 Qxa2 30. Rd7+ Kc8 31. Rc7+ Kb8 32. Rd7+ Ka8 (32... Kc8 33. Rc7+ Kb8 $11) 33. Rxd8+ Kb7 34. Re7+ Kc6 35. Rd6+ Kb5 (35... Kc5 36. b3 $11) 36. b3 (36. Re5+ Kc4 $16) 36... Qxb3 37. Re5+ Kc4 38. Rc6+ (38. Rxf5 $2 Qb1+ 39. Rd1 Qxf5 $19) 38... Kd4 39. Rd6+ Kc4 40. Rc6+ (40. Rxf5 $2 Qb1+ 41. Rd1 Qxf5 $19) 40... Kd4 41. Kf2 $11 (41. Rd6+ Kc4 $11)) 27. Kf1 Rxc1+ (27... Qxa2 $2 {perishes.} 28. Rxc2 (28. Bxc7 $2 {loses.} Rxc1+ 29. Nxc1 Qc4+ 30. Ne2 Re8 $19) 28... Qb1+ 29. Rc1 Rd1+ 30. Rxd1 Qxd1+ 31. Kf2 $18) 28. Bxc1 Bh3 (28... Qb6 $142 {[%cal Rd8d1]} 29. Nd4 Nxd4 (29... Qxd4 $2 30. Qxd4 Nxd4 31. Kf2 $19)) 29. Bf4 {[%emt 0:13:48]} Qb6 {[%emt 0:14:45] Weighted Error Value: White=1.02/Black=0.62.  Mistake:       	White=6     	---        Inaccurate:     	White=1     	Black=2      OK:         	White=5     	Black=10     Best:        	---       	Black=1      Strong:       	White=1     	---} 0-1

[Event "3rd Sunway Formentera-A 2024"]
[Site "Formentera"]
[Date "2024.04.09"]
[Round "1.5"]
[White "Dragnev, Valentin"]
[Black "Neiman, Emmanuel"]
[Result "1-0"]
[ECO "C54"]
[WhiteElo "2571"]
[BlackElo "2193"]
[Annotator "TA"]
[PlyCount "111"]
[EventDate "2024.04.03"]
[EventType "swiss"]
[EventCountry "ESP"]
[SourceTitle "playchess.com"]
[Source "ChessBase"]
[SourceQuality "1"]
[TimeControl "40/5400+30:1800+30"]

{[%evp 19,111,0,2,0,0,0,0,19,0,-25,-27,-23,0,0,0,-19,-27,-46,-47,-41,-41,-45,-50,-64,-50,-64,-29,-25,-27,-29,-32,-37,-33,-34,0,-35,-23,-23,-23,-29,-32,-39,-37,-38,-19,-18,-21,-24,-8,-7,0,-55,-14,-21,-29,-32,0,0,0,0,0,0,20,0,17,37,26,15,21,17,23,6,33,35,56,0,82,86,200,197,264,187,315,321,314,304,306,301,803,795,1928,1554,1334,1331]} 1. e4 {[%emt 0:00:20]} e5 {[%emt 0:00:00]} 2. Nf3 {[%emt 0:00:30]} Nc6 {[%emt 0:00:29]} 3. Bc4 {[%emt 0:00:30]} Bc5 {[%emt 0:00:30]} 4. d3 {[%emt 0:00:30]} Nf6 {[%emt 0:00:30]} 5. O-O {[%emt 0:00:30]} a6 {[%emt 0:00:30]} 6. c3 {[%emt 0:00:30]} Ba7 {[%emt 0:00:30]} 7. Nbd2 {[%emt 0:00:30] 7.a4 is becoming the main line. C54: Giuoco Piano: 4 c3 Nf6, main lines with 5 d4 and 5 d3.} O-O {[%emt 0:00:30]} 8. Re1 {[%emt 0:00:30]} d6 {[%emt 0:00:30]} 9. Nf1 {[%emt 0:00:30]} Na5 {[%emt 0:00:30]} 10. Bb3 {[%emt 0:00:30]} Nxb3 {[%emt 0:00:30]} 11. axb3 {[%emt 0:00:30]} Ng4 {[%emt 0:00:30]} 12. d4 {[%emt 0:00:30]} f5 {[%emt 0:00:30]} 13. Bg5 {[%emt 0:00:30]} Qd7 {[%emt 0:00:30]} 14. exf5 {[%emt 0:00:30]} Qxf5 {[%emt 0:00:30]} 15. Be7 $146 {[%emt 0:00:30]} (15. h3 $2 Nxf2 16. Kxf2 Qxg5 $19) ({Predecessor:} 15. Ng3 Qg6 16. Qd2 h6 17. Bh4 Be6 18. h3 Nf6 19. dxe5 Nh5 20. Kh2 Nf4 21. Be7 {0-1 Khlopushin,D (1824)-Zavgorodniaya,A (2011) Chigorin Memorial 24th 2016 (9)}) 15... Re8 {[%emt 0:00:30]} (15... Nxf2 $5 16. Kxf2 Rf7 $14) 16. Bh4 {[%emt 0:00:30]} e4 {[%emt 0:00:30]} 17. h3 {[%emt 0:00:30]} Qg6 {[%emt 0:00:30]} 18. Qc2 {[%emt 0:00:30]} Nh6 $1 {[%emt 0:00:30]} 19. Bg3 $1 {[%emt 0:00:30]} Bd7 {[%emt 0:00:30]} (19... exf3 $2 20. Qxg6 Rxe1 21. Qh5 $18) 20. N3d2 {[%emt 0:00:30]} d5 {[%emt 0:00:30]} 21. Ne3 {[%emt 0:00:30]} c6 {[%emt 0:00:30]} 22. b4 {[%emt 0:00:30]} Bb8 {[%emt 0:00:30]} 23. Ndf1 {[%emt 0:00:30]} Nf5 {[%emt 0:56:25]} (23... Rf8 {with more complications.} 24. c4 Nf5 25. cxd5 Bxg3 26. fxg3 Nxe3 27. Nxe3 Qxg3 28. dxc6 Bxc6 29. Kh1 h6) 24. Nxf5 {[%emt 1:15:54]} Bxf5 {[%emt 0:00:30]} 25. Re3 {[%emt 0:00:30]} Bxg3 {[%emt 0:00:30]} 26. Nxg3 {[%emt 0:00:30]} Rf8 {[%emt 0:03:04]} 27. Nf1 {[%emt 0:03:56]} (27. Nxf5 $5 Rxf5 28. f3 $11) 27... Rf6 {[%emt 0:03:32]} 28. Rae1 {[%emt 0:03:50]} Raf8 {[%emt 0:00:10]} 29. R1e2 {[%emt 0:00:42]} Qf7 {[%emt 0:05:25]} 30. Qd2 {[%emt 0:00:22]} Bg6 {[%emt 0:03:51]} 31. Qe1 {[%emt 0:01:16]} Rf4 {[%emt 0:02:57]} 32. Rg3 {[%emt 0:02:03]} Bh5 {[%emt 0:05:07]} 33. Rc2 {[%emt 0:00:39]} Qf6 {[%emt 0:00:44]} 34. Ne3 {[%emt 0:00:38]} h6 {[%emt 0:06:37]} 35. Rd2 {[%emt 0:01:20]} (35. c4 $11) 35... Kh7 {[%emt 0:00:26]} 36. c4 {[%emt 0:02:25]} Bf7 {[%emt 0:02:25]} 37. Ng4 {[%emt 0:01:05]} Qh4 {[%emt 0:00:06]} 38. Qe3 {[%emt 0:00:45]} Bh5 {[%emt 0:01:10]} 39. Ne5 {[%emt 0:00:41]} dxc4 {[%emt 0:00:42]} 40. Nxc4 {[%emt 0:00:00]} Qe7 {[%emt 0:00:00]} 41. Qc3 {[%emt 0:04:11]} (41. d5 {is more complex.} Qxb4 42. d6 Qxc4 43. d7) 41... R8f5 {[%emt 0:13:08]} 42. Ne3 {[%emt 0:03:01]} Rf6 {[%emt 0:06:09]} 43. d5 {[%emt 0:08:08]} g5 {[%emt 0:04:27]} 44. Qc5 {[%emt 0:03:29]} Qd6 {[%emt 0:01:57]} 45. Qb6 {[%emt 0:11:06]} cxd5 {[%emt 0:00:59]} 46. Qxb7+ {[%emt 0:00:24]} Rf7 {[%emt 0:00:49]} 47. Rxd5 {[%emt 0:03:24]} (47. Qxd5 $14 Qf6 48. Ng4 Bxg4 49. Rxg4) 47... Rxb7 {[%emt 0:01:10]} (47... Qf6 $1 $11 {remains equal.} 48. Rd7 Qxb2) 48. Rxd6 $16 {[%emt 0:00:01]} Be2 {[%emt 0:01:10]} (48... Rbf7 $16) 49. Nd5 $18 {[%emt 0:00:41]} Rff7 {[%emt 0:00:39]} (49... Rf5 {is a better defense.} 50. Rc3 Kg7) 50. Re3 {[%emt 0:00:55]} Bc4 {[%emt 0:02:45]} (50... Bd3 {was called for.} 51. Nf6+ Rxf6 52. Rxf6 Kg7) 51. Nf6+ $18 {[%emt 0:00:18]} ({Don't play} 51. Rxe4 Bxd5 52. Rxd5 Rb6 $18) 51... Kg7 {[%emt 0:00:25]} 52. Nh5+ {[%emt 0:00:49]} (52. Nxe4 Rxb4 53. Nd2 Bb5 $14) (52. Rxe4 Rxf6 53. Rxf6 Bd5 $11) 52... Kh7 {[%emt 0:00:13]} 53. Rxe4 {[%emt 0:00:35]} Rxb4 $2 {[%emt 0:01:32]} (53... Bb3 54. Rxa6 Rfe7 55. Rxe7+ Rxe7) 54. b3 $18 {[%emt 0:00:30]} Rxb3 {[%emt 0:00:23]} 55. Rxc4 {[%emt 0:00:09]} Rb1+ {[%emt 0:00:02]} 56. Kh2 {[%emt 0:00:09]} 1-0